[Event "German Bundesliga 2021-22"]
[Site "Germany"]
[Date "2022.04.10"]
[Round "4.2"]
[White "Kryvoruchko, Yuriy"]
[Black "Indjic, Aleksandar"]
[Result "1/2-1/2"]
[ECO "B90"]
[WhiteElo "2683"]
[BlackElo "2604"]
[Annotator "TA"]
[PlyCount "78"]
[EventDate "2022.03.05"]
[EventType "team-tourn"]
[EventCountry "GER"]
[SourceTitle "playchess.com"]
[Source "ChessBase"]
[SourceQuality "1"]
[TimeControl "40/5400+30:1800+30"]

{[%evp 18,78,25,26,31,25,18,29,31,8,4,0,0,-6,42,36,26,31,44,52,58,22,26,16,27,19,13,0,0,0,0,0,20,23,40,37,69,69,72,47,64,71,70,71,76,75,86,70,63,54,54,45,53,50,53,20,21,20,20,12,14,0,0]} 1. e4 {[%emt 0:00:30]} c5 {[%emt 0:00:00]} 2. Nf3 {[%emt 0:00:12]} d6 {[%emt 0:00:00]} 3. d4 {[%emt 0:00:00]} cxd4 {[%emt 0:00:00]} 4. Nxd4 {[%emt 0:00:00]} Nf6 {[%emt 0:00:00]} 5. Nc3 {[%emt 0:00:00]} a6 {[%emt 0:00:00]} 6. f3 {[%emt 0:00:00]} e5 {[%emt 0:00:00]} 7. Nb3 {[%emt 0:00:00]} Be6 {[%emt 0:00:00]} 8. Be3 {[%emt 0:00:00]} Be7 {[%emt 0:00:00]} 9. Qd2 {[%emt 0:00:00]} h5 {[%emt 0:00:00]} 10. Be2 {[%emt 0:00:00]} Nbd7 {[%emt 0:00:00] B90: Sicilian Najdorf: Unusual White 6th moves, 6 Be3 Ng4 and 6 Be3 e5.} 11. Nd5 {[%emt 0:00:00]} Bxd5 {[%emt 0:00:00]} 12. exd5 {[%emt 0:00:00]} O-O {[%emt 0:00:00] White has an edge. 12...0-0 has become a bit dusty these days.} 13. Na5 {[%emt 0:01:14] [#]} Qc8 $146 {[%emt 0:02:19]} ({Predecessor:} 13... Qc7 14. c4 e4 15. O-O exf3 16. gxf3 Ne5 17. b4 b6 18. f4 Neg4 19. Nc6 Nxe3 20. Qxe3 {1-0 (32) Wagner,D (2581)-Perez,M (2417) Chess.com INT 2020}) 14. c4 {[%emt 0:09:57]} Bd8 {[%emt 0:00:15]} 15. O-O {[%emt 0:02:55]} Bb6 {[%emt 0:00:13]} (15... e4 $11) 16. Bxb6 $14 {[%emt 0:00:33]} Nxb6 {[%emt 0:00:07]} 17. b4 {[%emt 0:00:05]} Re8 {[%emt 0:01:01]} 18. Rac1 {[%emt 0:03:17]} (18. g4 {looks sharper.} hxg4 19. fxg4 Nxg4 20. Qg5) 18... Nbd7 {[%emt 0:02:23]} 19. Qe3 {[%emt 0:14:51]} Qc7 {[%emt 0:10:21]} 20. Rfd1 {[%emt 0:00:13]} b6 {[%emt 0:09:17]} 21. Nc6 {[%emt 0:11:05]} Nb8 $1 {[%emt 0:02:44]} 22. Nxb8 {[%emt 0:05:47]} Raxb8 {[%emt 0:00:18]} 23. c5 $1 {[%emt 0:09:02]} bxc5 {[%emt 0:01:14]} 24. bxc5 {[%emt 0:00:03]} e4 {[%emt 0:09:38]} 25. Qa3 {[%emt 0:08:26]} ({Don't play} 25. Bxa6 Qa7 26. Bf1 Nd7 $17) 25... dxc5 {[%emt 0:01:53]} 26. d6 {[%emt 0:00:17]} ({Not} 26. Bxa6 $2 Ra8 27. fxe4 Qb6 28. Qxc5 Qxa6 $19) 26... Qb6 {[%emt 0:15:17]} 27. Qxc5 {[%emt 0:05:45]} exf3 {[%emt 0:07:06]} 28. Bxf3 {[%emt 0:01:28] [#] Hoping for Qxb6.} Red8 $1 {[%emt 0:00:11]} 29. a4 {[%emt 0:05:47] 0x0.0018077fbeb9dp-1022s more active pieces.} Qxc5+ {[%emt 0:13:06]} 30. Rxc5 {[%emt 0:00:04]} Rb6 {[%emt 0:00:08]} 31. Bc6 {[%emt 0:09:28]} a5 {[%emt 0:00:08]} 32. d7 {[%emt 0:02:08]} Kf8 $1 {[%emt 0:03:42]} 33. Bb5 {[%emt 0:01:12]} Ke7 {[%emt 0:00:22]} 34. Rc8 $36 {[%emt 0:03:51][%mdl 2048] Black is under pressure.} Re6 {[%emt 0:02:40]} 35. h3 {[%emt 0:00:08]} Ne4 {[%emt 0:06:14]} 36. Rc7 {[%emt 0:05:45]} Nd6 {[%emt 0:01:19] The position is equal.} 37. Bc6 {[%emt 0:00:54]} Re5 {[%emt 0:01:36]} 38. Ra7 {[%emt 0:00:50]} h4 {[%emt 0:06:41]} 39. Bb5 {[%emt 0:02:00]} Nxb5 {[%emt 0:01:30] Weighted Error Value: White=0.06 (flawless) /Black=0.05 (flawless)} 1/2-1/2

[Event "German Bundesliga 2021-22"]
[Site "Germany"]
[Date "2022.04.10"]
[Round "4.2"]
[White "Bluebaum, Matthias"]
[Black "Nagy, Gabor"]
[Result "1-0"]
[ECO "D31"]
[WhiteElo "2642"]
[BlackElo "2530"]
[Annotator "TA"]
[PlyCount "85"]
[EventDate "2022.03.05"]
[EventType "team-tourn"]
[EventCountry "GER"]
[SourceTitle "playchess.com"]
[Source "ChessBase"]
[SourceQuality "1"]
[TimeControl "40/5400+30:1800+30"]

{[%evp 19,85,8,26,12,20,14,23,12,22,13,16,16,16,14,17,9,18,20,95,69,69,75,71,56,54,31,29,9,9,13,23,42,51,56,58,51,50,18,26,32,34,0,0,0,20,25,22,24,241,264,572,561,724,656,1117,1087,1068,973,5065,5085,4922,4132,4132,2810,1628,1552,944,884]} 1. d4 {[%emt 0:00:00]} d5 {[%emt 0:00:00]} 2. c4 {[%emt 0:00:00]} e6 {[%emt 0:00:00]} 3. Nc3 {[%emt 0:00:00]} Bb4 {[%emt 0:00:00]} 4. e3 {[%emt 0:00:00]} Nf6 {[%emt 0:00:00]} 5. Nf3 {[%emt 0:00:00]} O-O {[%emt 0:00:00]} 6. Bd2 {[%emt 0:00:00]} b6 {[%emt 0:00:00]} 7. cxd5 {[%emt 0:00:00]} exd5 {[%emt 0:00:00]} 8. Rc1 {[%emt 0:00:00]} a6 {[%emt 0:00:24]} 9. Bd3 {[%emt 0:00:00]} Bb7 {[%emt 0:00:53]} 10. O-O {[%emt 0:00:08]} Bd6 {[%emt 0:02:12]} 11. Ne5 {[%emt 0:00:53] E52: Nimzo-Indian: Rubinstein: 4...0-0 5 Nf3 d5 6 Bd3 b6.} c5 {[%emt 0:03:27]} 12. f4 {[%emt 0:00:34]} Nc6 {[%emt 0:02:37]} 13. Ng4 {[%emt 0:00:42] White has an edge.} Be7 {[%emt 0:01:16]} 14. Nxf6+ {[%emt 0:01:00]} Bxf6 {[%emt 0:00:08]} 15. dxc5 {[%emt 0:00:24]} (15. Qh5 g6 16. Qf3 Nb4 $11) 15... bxc5 {[%emt 0:01:12]} (15... Nb4 16. Bb1 $16) 16. b3 {[%emt 0:00:22]} (16. Qh5 g6 17. Qf3 (17. Qxd5 $2 Bxc3 18. Qxd8 Rfxd8 $19) 17... c4 $15) 16... c4 {[%emt 0:10:53]} 17. bxc4 {[%emt 0:03:30]} Nb4 {[%emt 0:00:38]} 18. Bb1 {[%emt 0:05:18] [#]} d4 $146 {[%emt 0:07:39]} (18... dxc4 $11 {remains equal.} 19. Ne4 Bxe4 20. Bxe4 Nd3) ({Predecessor:} 18... dxc4 19. Ne4 Bxe4 20. Bxe4 c3 21. Bxa8 Qxd2 22. Qxd2 cxd2 23. Rc4 Nxa2 24. Bf3 Rd8 {½-½ (31) Aczel,G (2553)-Kozak,A (2526) Budapest 2021}) 19. Na4 {[%emt 0:14:52]} a5 {[%emt 0:02:55]} 20. Nc5 {[%emt 0:12:16]} Bc6 {[%emt 0:03:44]} 21. a3 {[%emt 0:08:40]} (21. Qh5 g6 22. Qh3 Re8 $11) (21. Bxb4 $5 axb4 22. Qd3 $14) 21... Na6 {[%emt 0:10:52]} 22. Nxa6 {[%emt 0:04:44]} (22. Ne4 $5 {[%cal Rd2a5]} Re8 23. Nxf6+ Qxf6 24. exd4 (24. Bxa5 dxe3 25. Qe2 Nc5 $14) 24... Qxd4+ 25. Rf2 $11) 22... Rxa6 {[%emt 0:00:32]} 23. e4 {[%emt 0:06:09][%cal Be3e4,Be4e5][%mdl 32] With the idea Bd3.} d3 {[%emt 0:03:01]} 24. e5 {[%emt 0:00:03]} Be7 {[%emt 0:00:34] Hoping for ...Bc5+.} 25. Be3 {[%emt 0:01:46] Prevents Bc5. Black must now prevent Rc3.} Bxa3 {[%emt 0:06:28]} 26. Rc3 $40 {[%emt 0:00:13][%mdl 128] Black needs to defend precisely.} (26. Qxd3 $2 Qxd3 27. Bxd3 Bxc1 28. Bxc1 Rd8 $19) 26... Bb4 {[%emt 0:00:09]} 27. Rxd3 {[%emt 0:00:06]} Qe7 {[%emt 0:00:21]} 28. Bf2 {[%emt 0:08:46]} a4 {[%emt 0:01:33]} 29. Qe2 {[%emt 0:03:24]} a3 {[%emt 0:01:43]} 30. Rh3 {[%emt 0:01:15]} (30. f5 $5 {[%cal Rf5f6]} Re8 31. Re3 $14) 30... g6 {[%emt 0:04:27]} 31. f5 {[%emt 0:01:48] And now f6 would win.} Bc5 {[%emt 0:01:19] aiming for ...Rb8.} ({Much less strong is} 31... Qg5 32. Rg3 Qd2 33. Qxd2 Bxd2 34. e6 $16) 32. f6 {[%emt 0:14:10]} Bxf2+ {[%emt 0:00:50]} 33. Rxf2 {[%emt 0:00:00]} Qb4 {[%emt 0:01:55] A mistake that costs the game.} (33... Qc5 $1 $11 {and Black has nothing to worry.}) 34. Ba2 $1 $18 {[%emt 0:00:27] e6 is the strong threat.} Re8 {[%emt 0:02:52]} (34... Rd8 {is more resistant.} 35. e6 Be8) 35. c5 {[%emt 0:02:21] White is clearly winning.} Bb5 {[%emt 0:02:14]} 36. Qe3 {[%emt 0:04:17]} (36. Bxf7+ Kf8 37. Qd1 Rxe5 $19) 36... Rae6 {[%emt 0:00:16]} 37. Rf4 $1 {[%emt 0:04:34]} Qb2 {[%emt 0:03:45]} 38. Bxe6 {[%emt 0:00:07][%cal Oh3h7] White threatens Rxh7! and mate.} Rxe6 {[%emt 0:01:17] [#]} 39. Rxh7 $3 {[%emt 0:00:22][%mdl 512]} Qb1+ {[%emt 0:01:11]} 40. Kf2 {[%emt 0:00:01]} Qb2+ {[%emt 0:00:38]} 41. Kg3 {[%emt 0:36:46]} Qxe5 {[%emt 0:30:11]} 42. Qxe5 {[%emt 0:00:00]} Rxe5 {[%emt 0:00:00] [#]} 43. Rfh4 $1 {[%emt 0:00:00] Weighted Error Value: White=0.06 (flawless) /Black=0.37} 1-0

[Event "German Bundesliga 2021-22"]
[Site "Germany"]
[Date "2022.04.10"]
[Round "4.2"]
[White "Fridman, Daniel"]
[Black "Prusikin, Michael"]
[Result "1/2-1/2"]
[ECO "A09"]
[WhiteElo "2626"]
[BlackElo "2540"]
[Annotator "TA"]
[PlyCount "106"]
[EventDate "2022.03.05"]
[EventType "team-tourn"]
[EventCountry "GER"]
[SourceTitle "playchess.com"]
[Source "ChessBase"]
[SourceQuality "1"]
[TimeControl "40/5400+30:1800+30"]

{[%evp 11,106,-11,0,-21,-4,-34,-33,-31,-37,-62,-54,-64,-39,-67,-39,-62,-54,-90,-85,-76,-68,-85,-66,-115,-120,-94,-65,-65,-33,-21,-33,-166,-121,-146,-157,-372,-374,-362,-363,-379,-364,-366,-376,-380,-347,-353,-360,-344,-339,-602,-402,-388,-400,-668,-615,-918,-218,-220,-220,-211,-215,-215,-215,-224,-205,-214,-168,-216,-161,-362,-49,-76,-58,-83,-102,-154,-91,-116,-71,-142,-103,-90,-106,-98,0,-13,0,-4,0,0,0,0,0,0,0,0,0]} 1. Nf3 {[%emt 0:00:00]} d5 {[%emt 0:00:00]} 2. c4 {[%emt 0:00:00]} d4 {[%emt 0:00:00]} 3. g3 {[%emt 0:00:00]} Nc6 {[%emt 0:00:00]} 4. Bg2 {[%emt 0:00:00]} e5 {[%emt 0:00:00]} 5. d3 {[%emt 0:00:00]} Bd6 {[%emt 0:00:00]} 6. O-O {[%emt 0:00:00]} Nf6 {[%emt 0:00:00]} 7. Na3 {[%emt 0:02:14] is the legacy move (7.e3). A09: Réti Opening: 1 Nf3 d5 2 c4.} O-O {[%emt 0:00:00]} 8. Bg5 {[%emt 0:00:27]} (8. e3 {is more complex.} Bg4 9. Nb5 Qd7 10. Nxd6 cxd6 11. exd4 Nxd4 12. b3) 8... Bxa3 {[%emt 0:00:00]} 9. bxa3 {[%emt 0:00:08] Black is slightly better.} h6 {[%emt 0:00:00] [#]} 10. Bc1 $146 {[%emt 0:04:03]} ({Predecessor:} 10. Bxf6 Qxf6 11. Rb1 Rb8 12. Nd2 Bg4 13. h3 Bd7 14. Qa4 Qe7 15. Rb2 a6 16. Rfb1 Nd8 {1-0 (29) Gaerths,R-Kapr,K Germany 1992}) 10... Re8 {[%emt 0:06:08]} 11. Rb1 {[%emt 0:03:18]} Rb8 {[%emt 0:03:04]} 12. Re1 {[%emt 0:08:36]} b6 {[%emt 0:12:25]} 13. Nd2 {[%emt 0:11:14]} Bb7 {[%emt 0:01:40]} 14. Nb3 {[%emt 0:00:11]} Qd7 {[%emt 0:11:40]} 15. e3 {[%emt 0:09:12]} dxe3 {[%emt 0:07:58]} 16. Bxe3 {[%emt 0:00:09]} Nd8 {[%emt 0:04:31][%cal Bc6d8,Bd8b7,Bb7d6,Bd6f5,Bf5h4][%mdl 32]} 17. Bxb7 {[%emt 0:12:03]} (17. d4 $15) 17... Nxb7 $17 {[%emt 0:02:59]} 18. d4 {[%emt 0:03:41]} Qh3 {[%emt 0:08:31]} 19. Qf3 {[%emt 0:00:44]} Nd6 {[%emt 0:00:30]} (19... c5 20. dxc5 Nxc5 21. Nxc5 (21. Bxc5 bxc5 22. Nd2 Rxb1 $15) 21... bxc5 22. Rxb8 (22. Bxc5 e4 $15) 22... Rxb8 23. Bxc5 $11) 20. dxe5 {[%emt 0:10:03]} Rxe5 {[%emt 0:00:43] Threatens to win with ...Rbe8.} 21. c5 {[%emt 0:00:50]} (21. Bd4 $15 Re6 22. Rxe6 Qxe6 23. Bxf6 Qxf6 24. Qxf6 gxf6 25. a4) 21... Nf5 {[%emt 0:05:17]} 22. cxb6 {[%emt 0:03:27]} axb6 {[%emt 0:05:04]} 23. Bf4 $2 {[%emt 0:00:16] [#]} (23. Nd4 $17 Nxe3 24. Rxe3) 23... Nh4 $1 $19 {[%emt 0:04:02][%mdl 512]} 24. Qh1 {[%emt 0:00:37]} Rf5 {[%emt 0:00:55][%cal Of5f4]} 25. Re3 {[%emt 0:07:42] [#]} Rxf4 {[%emt 0:08:16][%mdl 512]} 26. gxf4 {[%emt 0:00:07]} Qg4+ {[%emt 0:00:22]} (26... Qf5 $2 27. Rbe1 $17) 27. Kf1 {[%emt 0:05:03]} Qxf4 {[%emt 0:00:13] aiming for ...Ng4.} 28. Rbe1 {[%emt 0:01:35]} Rd8 {[%emt 0:05:05]} (28... Ng4 29. Re8+ Rxe8 30. Rxe8+ Kh7 31. Qe4+ Qxe4 32. Rxe4 $16) 29. h3 {[%emt 0:01:37]} Rd5 {[%emt 0:00:52]} 30. Rc3 $2 {[%emt 0:07:28]} (30. Re4 Nxe4 31. Qxe4) 30... Rf5 {[%emt 0:02:25][%csl Gf5][%cal Rf4f2]} 31. Re2 {[%emt 0:02:15]} c5 {[%emt 0:05:43]} 32. Qg1 {[%emt 0:07:58]} (32. Nd2 $142 Qd4 33. Rce3) 32... Rg5 {[%emt 0:04:29]} 33. Rg3 {[%emt 0:00:30]} c4 $2 {[%emt 0:00:13]} (33... Rd5 {( -> ...Rd1+)} 34. Ke1 Nf3+ 35. Rxf3 Qxf3) 34. Rxg5 {[%emt 0:00:49]} hxg5 {[%emt 0:00:01]} 35. Qg3 {[%emt 0:00:13]} Qf5 {[%emt 0:01:09]} ({Stronger than} 35... cxb3 36. Qxf4 gxf4 37. axb3 $11) 36. Nd2 {[%emt 0:00:24] [#]} Qd5 $1 {[%emt 0:00:38]} 37. f4 {[%emt 0:01:24]} c3 {[%emt 0:02:42]} 38. Qxc3 {[%emt 0:00:18]} Qh1+ {[%emt 0:00:07]} ({And not} 38... gxf4 39. Kg1 $17) 39. Kf2 {[%emt 0:00:02]} gxf4 {[%emt 0:00:52][%cal Of4f3] And now ...f3! would win.} 40. Qd3 {[%emt 0:01:05] Inhibits f3.} (40. Re7) 40... Qg2+ $2 {[%emt 0:00:31]} (40... f3 $1 $19 41. Re7 Qxh3) 41. Ke1 $17 {[%emt 0:00:00]} Qg1+ {[%emt 0:00:00][%mdl 1024] Black has strong compensation.} 42. Nf1 {[%emt 0:00:00][%cal Oe1d2]} g6 {[%emt 0:00:00]} ({Of course not} 42... Ng2+ $6 43. Kd2 $11) 43. Rc2 {[%emt 0:00:00] [#]} (43. Rf2 $142) 43... Kg7 {[%emt 0:00:00]} (43... Qh1 $142 $1 {Strongly threatening ...Nf3+.} 44. Rf2 g5) 44. Kd2 {[%emt 0:02:36]} Nf5 {[%emt 0:00:00] White must now prevent ...Nd4. Pair of Knights!} 45. Kc3 {[%emt 0:01:37] [#] Inhibits Nd4.} ({Better is} 45. Rc4) 45... Nd7 $1 {[%emt 0:06:55][%mdl 512]} 46. Qxd7 {[%emt 0:05:18] Qd3 is the strong threat.} Qxf1 {[%emt 0:01:38][%mdl 4096] Endgame KQR-KQN} 47. Qd3 {[%emt 0:00:02]} Qa1+ {[%emt 0:03:15]} (47... Qe1+ $17 48. Kb2 Qe5+ 49. Kb1 Kh6) 48. Kd2 $1 $11 {[%emt 0:00:08] Hoping for Qc3+. The position is equal.} Qg1 {[%emt 0:00:44][%cal Of4f3]} 49. Rc4 {[%emt 0:02:23]} Qg2+ {[%emt 0:02:43]} 50. Qe2 {[%emt 0:02:12]} Qd5+ {[%emt 0:02:17]} 51. Qd3 $1 {[%emt 0:00:14]} Qg2+ {[%emt 0:00:08]} 52. Qe2 {[%emt 0:00:06]} Qd5+ {[%emt 0:04:01]} 53. Qd3 $1 {[%emt 0:00:02]} Qg2+ {[%emt 0:01:06] Black had all chances to win.  Weighted Error Value: White=0.37/Black=0.37} 1/2-1/2

[Event "German Bundesliga 2021-22"]
[Site "Germany"]
[Date "2022.04.10"]
[Round "4.2"]
[White "Papp, Gabor"]
[Black "Rabiega, Robert"]
[Result "1-0"]
[ECO "E04"]
[WhiteElo "2576"]
[BlackElo "2505"]
[Annotator "TA"]
[PlyCount "63"]
[EventDate "2022.03.05"]
[EventType "team-tourn"]
[EventCountry "GER"]
[SourceTitle "playchess.com"]
[Source "ChessBase"]
[SourceQuality "1"]
[TimeControl "40/5400+30:1800+30"]

{[%evp 10,63,17,15,28,33,46,55,36,36,30,38,41,35,35,33,45,30,31,30,35,33,31,33,67,54,58,45,41,37,47,52,47,48,93,78,71,80,72,43,82,80,72,70,127,126,129,107,437,405,377,40,280,142,258,242]} 1. Nf3 {[%emt 0:00:00]} d5 {[%emt 0:00:00]} 2. c4 {[%emt 0:00:00]} e6 {[%emt 0:00:00]} 3. d4 {[%emt 0:00:00]} Nf6 {[%emt 0:00:00]} 4. g3 {[%emt 0:00:00]} dxc4 {[%emt 0:00:00]} 5. Bg2 {[%emt 0:00:00]} Nc6 {[%emt 0:00:00][%cal Bb8c6,Bc6b4,Bb4c2][%mdl 32]} 6. Qa4 {[%emt 0:00:00]} Nd7 {[%emt 0:00:00] E04: Open Catalan: 5 Nf3.} 7. Qxc4 {[%emt 0:00:00]} Nb6 {[%emt 0:00:00]} 8. Qb5 {[%emt 0:00:00]} a6 {[%emt 0:06:07] White is slightly better.} 9. Qd3 {[%emt 0:00:00]} e5 {[%emt 0:00:38]} 10. Nxe5 {[%emt 0:00:00]} Nb4 {[%emt 0:01:24]} 11. Qd1 {[%emt 0:00:00] Strongly threatening 0-0.} Qxd4 $1 {[%emt 0:03:23][%mdl 64] Decoy} 12. Qxd4 {[%emt 0:00:00]} Nc2+ {[%emt 0:00:06]} 13. Kd1 {[%emt 0:00:00]} Nxd4 {[%emt 0:00:05]} 14. Be3 {[%emt 0:00:06]} Nf5 {[%emt 0:10:13]} 15. Bxb6 {[%emt 0:00:48]} cxb6 {[%emt 0:01:49]} 16. Nc3 {[%emt 0:05:06]} Bc5 {[%emt 0:13:52]} 17. Nd3 {[%emt 0:18:23]} O-O {[%emt 0:00:19]} 18. Nxc5 {[%emt 0:29:41]} bxc5 {[%emt 0:00:31]} 19. e3 {[%emt 0:00:10] [#]} Rb8 $146 {[%emt 0:04:03]} ({Predecessor:} 19... Be6 20. Kc2 Nd6 21. Rad1 Rad8 22. Bd5 b5 23. Bxe6 fxe6 24. Rd2 Kf7 25. Rhd1 Ke7 {½-½ (45) Filip,L (2470)-David,A (2622) Rethymno 2010}) 20. Ke2 {[%emt 0:01:53]} b6 {[%emt 0:27:44]} 21. Rhd1 {[%emt 0:02:08]} Bb7 {[%emt 0:00:18]} 22. Bxb7 {[%emt 0:10:41]} Rxb7 {[%emt 0:00:06]} 23. Rd2 {[%emt 0:00:02]} Re8 {[%emt 0:01:24]} 24. Rad1 {[%emt 0:00:14]} Kf8 {[%emt 0:10:44]} 25. Rd7 {[%emt 0:02:06]} Rxd7 {[%emt 0:03:35]} 26. Rxd7 $16 {[%emt 0:00:06][%mdl 4096] Endgame KRN-KRN} b5 {[%emt 0:00:21]} (26... Nd4+ $1 $14 27. Kf1 Nc6) 27. Kf3 {[%emt 0:05:19]} c4 {[%emt 0:07:32]} 28. Nd5 {[%emt 0:03:45]} Ne7 $2 {[%emt 0:03:26][%mdl 8192]} (28... Re6 $16 {is more resistant.}) 29. Nxe7 $18 {[%emt 0:02:09]} Rxe7 {[%emt 0:00:09]} 30. Rd8+ {[%emt 0:00:01]} Re8 {[%emt 0:00:12] [#]} 31. Rxe8+ {[%emt 0:00:03]} Kxe8 {[%emt 0:00:07] [#]} 32. Ke4 $1 {[%emt 0:00:04] Weighted Error Value: White=0.02 (flawless) /Black=0.40} 1-0

[Event "German Bundesliga 2021-22"]
[Site "Germany"]
[Date "2022.04.10"]
[Round "4.3"]
[White "Martinovic, Sasa"]
[Black "Anton Guijarro, David"]
[Result "0-1"]
[ECO "E12"]
[WhiteElo "2554"]
[BlackElo "2691"]
[Annotator "TA"]
[PlyCount "68"]
[EventDate "2022.03.05"]
[EventType "team-tourn"]
[EventCountry "GER"]
[SourceTitle "playchess.com"]
[Source "ChessBase"]
[SourceQuality "1"]
[TimeControl "40/5400+30:1800+30"]

{[%evp 14,68,23,23,24,25,16,29,19,8,19,15,20,8,16,16,32,6,20,0,5,0,0,0,0,-54,-58,-51,-52,-52,-59,-49,-57,-58,0,-9,-5,-5,21,0,0,-22,-23,-27,0,0,0,0,0,-318,-312,-677,-672,-5239,-2701,-29978,-5708]} 1. d4 {[%emt 0:00:00] ChessBase II} Nf6 {[%emt 0:00:00]} 2. c4 {[%emt 0:00:00]} e6 {[%emt 0:00:00]} 3. Nf3 {[%emt 0:00:00]} b6 {[%emt 0:00:00]} 4. a3 {[%emt 0:00:00]} Bb7 {[%emt 0:00:00]} 5. Bf4 {[%emt 0:00:00]} Be7 {[%emt 0:00:00]} 6. Nc3 {[%emt 0:00:00]} Ne4 {[%emt 0:10:46]} 7. Nxe4 {[%emt 0:00:00]} Bxe4 {[%emt 0:00:08]} 8. e3 {[%emt 0:00:00]} a5 $5 {[%emt 0:01:55][%mdl 4] An interesting side line. E12: Queen's Indian: Unusual White 4th moves, 4 a3, 4 Nc3 Bb7 5 a3 and 4 Nc3 Bb7 .} 9. Bd3 {[%emt 0:00:00]} Bxd3 {[%emt 0:01:28]} 10. Qxd3 {[%emt 0:00:00]} a4 {[%emt 0:02:13] White has an edge.} 11. O-O {[%emt 0:03:20]} O-O {[%emt 0:05:02]} 12. e4 {[%emt 0:02:08]} d6 {[%emt 0:01:26]} 13. Rad1 {[%emt 0:01:18] [#]} h6 $146 {[%emt 0:14:09]} ({Predecessor:} 13... Nd7 14. Rfe1 Re8 15. h3 Nf8 16. Qc2 Qd7 17. Re3 Ng6 18. Bh2 Red8 19. Rc3 Rac8 20. Rcd3 Qe8 21. Bg3 h6 22. R1d2 Kh8 23. Rd1 Kg8 24. R1d2 Kh8 25. Rd1 {½-½ (25) Sanikidze,T (2542)-Romanov,E (2624) Aix les Bains 2011 CBM 142 Extra [ChessBase II]}) 14. Rfe1 {[%emt 0:00:50]} Re8 {[%emt 0:03:58]} 15. Qc2 {[%emt 0:02:12]} Bf8 {[%emt 0:07:22]} 16. Rd3 {[%emt 0:21:05]} Qf6 {[%emt 0:05:52]} 17. Qd2 {[%emt 0:01:09]} Nc6 {[%emt 0:01:10][%cal Bb8c6,Bc6a5,Ba5c4][%mdl 32]} 18. e5 {[%emt 0:03:48]} Qf5 {[%emt 0:09:49]} 19. exd6 {[%emt 0:24:11]} (19. h3 $11) 19... cxd6 $15 {[%emt 0:01:03]} 20. d5 {[%emt 0:00:06]} Na5 {[%emt 0:11:34]} (20... exd5 21. Rxd5 Rxe1+ 22. Nxe1 $11) 21. Nd4 {[%emt 0:02:11]} Qf6 {[%emt 0:01:12]} 22. dxe6 {[%emt 0:02:45]} Nxc4 {[%emt 0:06:12]} 23. Qc1 {[%emt 0:02:06]} d5 {[%emt 0:02:01]} (23... Rac8 $1 $15 {should be considered.} 24. exf7+ Qxf7 25. Rxe8 Qxe8) 24. exf7+ $11 {[%emt 0:04:45]} Qxf7 {[%emt 0:00:51]} 25. Bd2 {[%emt 0:03:27]} Nxd2 {[%emt 0:02:20]} 26. Qxd2 {[%emt 0:00:41]} Re4 {[%emt 0:00:41]} 27. Ree3 {[%emt 0:09:30]} Bc5 {[%emt 0:02:04] Hoping for ...Qf6.} 28. Rf3 {[%emt 0:02:13] Inhibits Qf6.} Rae8 $40 {[%emt 0:00:34][%cal Ba8e8,Be8e5,Be5h5,Bh5h4,Bh4h5][%mdl 160] Black is up to no good.} 29. g3 $1 {[%emt 0:01:22]} ({But not} 29. Nc2 Qg6 30. Qd1 (30. Rxd5 $2 Re2 $19) 30... Kh8 $15) 29... Qd7 {[%emt 0:05:37] And now ...Qh3 would win.} 30. Kg2 {[%emt 0:00:29] Against Qh3+} ({Of course not} 30. Rfe3 h5 $17) 30... R8e5 {[%emt 0:00:13]} 31. Qc3 $2 {[%emt 0:07:31][%mdl 8192] [#]} (31. h3 $11) 31... Rh5 $1 $19 {[%emt 0:01:45]} 32. h4 $2 {[%emt 0:04:12]} (32. g4 Rxg4+ 33. Rg3) 32... Qg4 $1 {[%emt 0:00:40][%csl LRd4,LRh4] Threatens to win with ...Rxh4.} 33. Nc2 {[%emt 0:03:47]} Rxh4 {[%emt 0:01:02] ( -> ...Qh3+)} 34. Kg1 {[%emt 0:00:03]} Rh5 {[%emt 0:00:32] Weighted Error Value: White=0.87/Black=0.05 (flawless)} 0-1